[Event "23rd European Women Club Cup 2018"]
[Site "Halkidiki"]
[Date "2018.10.12"]
[Round "1"]
[White "Paehtz, Elisabeth"]
[Black "Ovod, Evgenija"]
[Result "1/2-1/2"]
[ECO "A13"]
[WhiteElo "2513"]
[BlackElo "2363"]
[Annotator "ChessBase"]
[PlyCount "75"]
[EventDate "2018.10.12"]
[EventType "team-tourn"]
[EventCountry "GRE"]
[SourceTitle "playchess.com"]
[Source "ChessBase"]
[SourceQuality "1"]
[WhiteTeam "Pentole Agnelli"]
[BlackTeam "SSHOR"]
[TimeControl "40/5400+30:1800+30"]

1. c4 {[%emt 0:00:00]} e6 {[%emt 0:00:00]} 2. Nf3 {[%emt 0:00:00]} d5 {[%emt 0:00:00]} 3. d4 {[%emt 0:00:08]} Nf6 {[%emt 0:00:00]} 4. g3 {[%emt 0:00:08]} Bb4+ {[%emt 0:00:21]} 5. Nc3 {[%emt 0:00:38]} O-O {[%emt 0:01:26]} 6. Bg2 {[%emt 0:01:20]} c5 {[%emt 0:02:11]} 7. dxc5 {[%emt 0:09:34]} Nc6 {[%emt 0:02:18]} 8. O-O {[%emt 0:01:21]} dxc4 {[%emt 0:03:35]} 9. Qc2 {[%emt 0:07:22]} Bxc5 {[%emt 0:05:36]} 10. Na4 {[%emt 0:00:10]} Bd6 {[%emt 0:02:18]} 11. Qxc4 {[%emt 0:02:21]} e5 {[%emt 0:03:10]} 12. Nc3 {[%emt 0:05:25]} Be6 {[%emt 0:03:10]} 13. Qh4 {[%emt 0:00:53]} h6 {[%emt 0:02:24]} 14. Rd1 {[%emt 0:00:21]} Qe7 {[%emt 0:07:12]} 15. Bxh6 {[%emt 0:08:35]} gxh6 {[%emt 0:00:08]} 16. Rxd6 {[%emt 0:00:09]} Qxd6 {[%emt 0:00:03]} 17. Qxf6 {[%emt 0:00:05]} Rfd8 {[%emt 0:00:29]} 18. Qxh6 {[%emt 0:08:44]} Bf5 {[%emt 0:02:13]} 19. Qg5+ {[%emt 0:00:59]} Qg6 {[%emt 0:01:09]} 20. Qe3 {[%emt 0:00:05]} Qg7 {[%emt 0:09:27]} 21. Rc1 {[%emt 0:08:11]} Rd7 {[%emt 0:05:21]} 22. h3 {[%emt 0:04:42]} Rad8 {[%emt 0:05:41]} 23. g4 {[%emt 0:00:13]} Be6 {[%emt 0:01:59]} 24. Ng5 {[%emt 0:02:15]} Nd4 {[%emt 0:01:26]} 25. Nge4 {[%emt 0:08:12]} f5 {[%emt 0:06:36]} 26. Nc5 {[%emt 0:00:10]} f4 {[%emt 0:01:05]} 27. Qe4 {[%emt 0:01:07]} Rc7 {[%emt 0:06:08]} 28. Nd3 {[%emt 0:05:18]} Bc4 {[%emt 0:00:13]} 29. Rd1 {[%emt 0:02:54]} Bxd3 {[%emt 0:16:10]} 30. Rxd3 {[%emt 0:00:07]} Rcd7 {[%emt 0:00:17]} 31. Kh1 {[%emt 0:02:42]} Qf6 {[%emt 0:00:50]} 32. e3 {[%emt 0:02:58]} fxe3 {[%emt 0:02:14]} 33. fxe3 {[%emt 0:02:18]} Nc6 {[%emt 0:02:21]} 34. Nd5 {[%emt 0:01:09]} Qg5 {[%emt 0:00:58]} 35. Qc4 {[%emt 0:06:30]} Kh8 {[%emt 0:01:33]} 36. Rd1 {[%emt 0:02:04]} Ne7 {[%emt 0:00:59]} 37. e4 {[%emt 0:00:03]} Ng6 {[%emt 0:03:01]} 38. Rf1 {[%emt 0:00:39]} 1/2-1/2

[Event "23rd European Women Club Cup 2018"]
[Site "Halkidiki"]
[Date "2018.10.12"]
[Round "1"]
[White "Zhukova, Natalia"]
[Black "Haussernot, Cecile"]
[Result "1/2-1/2"]
[ECO "D46"]
[WhiteElo "2403"]
[BlackElo "2204"]
[Annotator "NA"]
[PlyCount "70"]
[EventDate "2018.10.12"]
[EventType "team-tourn"]
[EventCountry "GRE"]
[SourceTitle "playchess.com"]
[Source "ChessBase"]
[SourceQuality "1"]
[WhiteTeam "Kyiv"]
[BlackTeam "Mulhouse"]
[TimeControl "40/5400+30:1800+30"]

1. d4 {[%emt 0:00:00]} d5 {[%emt 0:00:00]} 2. c4 {[%emt 0:00:00]} c6 {[%emt 0:00:00]} 3. Nf3 {[%emt 0:00:00]} Nf6 {[%emt 0:00:20]} 4. Nc3 {[%emt 0:00:12]} e6 {[%emt 0:01:26]} 5. e3 {[%emt 0:00:31]} Nbd7 {[%emt 0:00:34]} 6. Bd3 {[%emt 0:00:18]} Bd6 {[%emt 0:00:35]} 7. e4 {[%emt 0:00:45]} dxc4 {[%emt 0:09:15]} 8. Bxc4 {[%emt 0:00:09]} b5 {[%emt 0:06:00]} 9. e5 {[%emt 0:18:56]} bxc4 {[%emt 0:00:49]} 10. exd6 {[%emt 0:00:07]} Nb6 {[%emt 0:02:43]} 11. Bf4 {[%emt 0:06:10]} Nh5 {[%emt 0:10:05]} 12. Be5 {[%emt 0:01:43]} f6 {[%emt 0:00:20]} 13. g4 {[%emt 0:00:58]} fxe5 {[%emt 0:00:26]} 14. gxh5 {[%emt 0:00:07]} O-O {[%emt 0:07:03]} 15. Nxe5 {[%emt 0:16:06]} Qxd6 {[%emt 0:01:10]} 16. Qg4 {[%emt 0:06:24]} Rb8 {[%emt 0:06:34]} 17. Rg1 {[%emt 0:08:10]} Rb7 {[%emt 0:02:07]} 18. h6 {[%emt 0:09:41]} g6 {[%emt 0:01:10]} 19. a3 {[%emt 0:13:35]} c5 {[%emt 0:04:45]} 20. O-O-O {[%emt 0:04:58]} Nd5 {[%emt 0:00:49]} 21. Ne4 {[%emt 0:03:19]} Qb6 {[%emt 0:06:35]} 22. Nxc4 {[%emt 0:00:06]} Qb3 {[%emt 0:01:07]} 23. Qe2 {[%emt 0:01:10]} Qa2 {[%emt 0:19:57]} 24. dxc5 {[%emt 0:02:44]} Nf4 {[%emt 0:06:52]} 25. Qc2 {[%emt 0:00:14]} e5 {[%emt 0:00:33]} 26. Ncd6 {[%emt 0:04:17]} Ne2+ {[%emt 0:01:16]} 27. Qxe2 {[%emt 0:00:25]} Qa1+ {[%emt 0:00:04]} 28. Kd2 {[%emt 0:00:16]} Rxb2+ {[%emt 0:00:09]} 29. Ke1 {[%emt 0:00:56]} Rxe2+ {[%emt 0:00:06]} 30. Kxe2 {[%emt 0:00:03]} Ba6+ {[%emt 0:00:12]} 31. Ke1 {[%emt 0:00:34]} Qb2 {[%emt 0:03:22]} 32. Rd2 {[%emt 0:00:08]} Qc1+ {[%emt 0:03:41]} 33. Rd1 {[%emt 0:00:02]} Qb2 {[%emt 0:02:46]} 34. Rd2 {[%emt 0:00:01]} Qc1+ {[%emt 0:00:04]} 35. Rd1 {[%emt 0:00:16]} Qb2 {[%emt 0:00:17]} 1/2-1/2

[Event "23rd European Women Club Cup 2018"]
[Site "Halkidiki"]
[Date "2018.10.12"]
[Round "1"]
[White "Mammadova, Gulnar"]
[Black "Mar, Karmen"]
[Result "1-0"]
[ECO "B52"]
[WhiteElo "2355"]
[BlackElo "2107"]
[Annotator "NA"]
[PlyCount "75"]
[EventDate "2018.10.12"]
[EventType "team-tourn"]
[EventCountry "GRE"]
[SourceTitle "playchess.com"]
[Source "ChessBase"]
[SourceQuality "1"]
[WhiteTeam "Odlar Yurdu"]
[BlackTeam "Maribor"]
[TimeControl "40/5400+30:1800+30"]

1. e4 {[%emt 0:00:00]} c5 {[%emt 0:00:00]} 2. Nf3 {[%emt 0:00:00]} d6 {[%emt 0:00:00]} 3. Bb5+ {[%emt 0:00:00]} Bd7 {[%emt 0:00:09]} 4. c4 {[%emt 0:00:18]} a6 {[%emt 0:00:17]} 5. Bxd7+ {[%emt 0:00:07]} Nxd7 {[%emt 0:00:15]} 6. Nc3 {[%emt 0:00:24]} Ngf6 {[%emt 0:00:50]} 7. O-O {[%emt 0:00:59]} e6 {[%emt 0:00:11]} 8. b3 {[%emt 0:01:08]} Be7 {[%emt 0:01:00]} 9. d4 {[%emt 0:00:11]} cxd4 {[%emt 0:00:39]} 10. Nxd4 {[%emt 0:01:06]} O-O {[%emt 0:02:17]} 11. Bb2 {[%emt 0:01:01]} Rc8 {[%emt 0:01:46]} 12. Qe2 {[%emt 0:01:12]} Qc7 {[%emt 0:01:18]} 13. Rac1 {[%emt 0:01:41]} Rfe8 {[%emt 0:05:12]} 14. Rfd1 {[%emt 0:01:20]} Qb8 {[%emt 0:03:07]} 15. h3 {[%emt 0:01:30]} Bd8 {[%emt 0:13:34]} 16. f4 {[%emt 0:03:15]} b6 {[%emt 0:19:22]} 17. Rd2 {[%emt 0:04:07]} Bc7 {[%emt 0:05:38]} 18. Rcd1 {[%emt 0:02:49]} Qa8 {[%emt 0:07:32]} 19. Nc2 {[%emt 0:05:44]} Nc5 {[%emt 0:04:27]} 20. Re1 {[%emt 0:06:39]} d5 {[%emt 0:10:52]} 21. e5 {[%emt 0:00:20]} Nfe4 {[%emt 0:00:23]} 22. Nxe4 {[%emt 0:06:58]} Nxe4 {[%emt 0:02:35]} 23. Rdd1 {[%emt 0:01:06]} b5 {[%emt 0:02:51]} 24. cxd5 {[%emt 0:04:02]} exd5 {[%emt 0:01:31]} 25. Bd4 {[%emt 0:08:12]} Ba5 {[%emt 0:01:08]} 26. b4 {[%emt 0:00:38]} Qc6 {[%emt 0:02:55]} 27. bxa5 {[%emt 0:03:58]} Qxc2 {[%emt 0:00:07]} 28. Qg4 {[%emt 0:00:59]} Rc4 {[%emt 0:02:14]} 29. Qd7 {[%emt 0:04:24]} Rf8 {[%emt 0:01:45]} 30. Qxd5 {[%emt 0:05:53]} Nc3 {[%emt 0:01:11]} 31. Bxc3 {[%emt 0:00:14]} Qxc3 {[%emt 0:00:48]} 32. f5 {[%emt 0:07:19]} Qxa5 {[%emt 0:02:50]} 33. e6 {[%emt 0:01:37]} Rcc8 {[%emt 0:05:35]} 34. e7 {[%emt 0:04:41]} Rfe8 {[%emt 0:00:49]} 35. Kh1 {[%emt 0:01:24]} Qb6 {[%emt 0:00:34]} 36. Qd7 {[%emt 0:00:18]} Qc5 {[%emt 0:01:14]} 37. Kh2 {[%emt 0:03:52]} f6 {[%emt 0:00:42]} 38. Rc1 {[%emt 0:00:54]} 1-0

[Event "23rd European Women Club Cup 2018"]
[Site "Halkidiki"]
[Date "2018.10.12"]
[Round "1"]
[White "Babiy, Olga"]
[Black "Neuhauser, Salome"]
[Result "1-0"]
[ECO "B38"]
[WhiteElo "2310"]
[BlackElo "2115"]
[Annotator "NA"]
[PlyCount "77"]
[EventDate "2018.10.12"]
[EventType "team-tourn"]
[EventCountry "GRE"]
[SourceTitle "playchess.com"]
[Source "ChessBase"]
[SourceQuality "1"]
[WhiteTeam "Kyiv"]
[BlackTeam "Mulhouse"]
[TimeControl "40/5400+30:1800+30"]

1. e4 {[%emt 0:00:00]} c5 {[%emt 0:00:00]} 2. Nf3 {[%emt 0:00:00]} Nc6 {[%emt 0:00:00]} 3. d4 {[%emt 0:00:00]} cxd4 {[%emt 0:00:00]} 4. Nxd4 {[%emt 0:00:00]} g6 {[%emt 0:00:06]} 5. c4 {[%emt 0:00:00]} Bg7 {[%emt 0:00:06]} 6. Be3 {[%emt 0:00:05]} d6 {[%emt 0:00:10]} 7. Nc3 {[%emt 0:00:40]} Nf6 {[%emt 0:00:08]} 8. Be2 {[%emt 0:00:18]} O-O {[%emt 0:00:25]} 9. O-O {[%emt 0:00:25]} Bd7 {[%emt 0:00:06]} 10. h3 {[%emt 0:00:20]} Nxd4 {[%emt 0:01:00]} 11. Bxd4 {[%emt 0:00:07]} Bc6 {[%emt 0:00:10]} 12. Qc2 {[%emt 0:00:53]} Qc7 {[%emt 0:09:54]} 13. Bd3 {[%emt 0:11:29]} Rfb8 {[%emt 0:06:07]} 14. Qd2 {[%emt 0:10:53]} a6 {[%emt 0:15:49]} 15. a4 {[%emt 0:17:04]} Qa5 {[%emt 0:06:22]} 16. Qe3 {[%emt 0:25:08]} Nd7 {[%emt 0:08:12]} 17. Nd5 {[%emt 0:01:01]} Bxd4 {[%emt 0:21:05]} 18. Qxd4 {[%emt 0:04:46]} Qd8 {[%emt 0:01:01]} 19. f4 {[%emt 0:06:49]} Nc5 {[%emt 0:14:16]} 20. Bc2 {[%emt 0:00:29]} b5 {[%emt 0:01:45]} 21. Nb4 {[%emt 0:07:34]} Bd7 {[%emt 0:04:36]} 22. axb5 {[%emt 0:00:04]} axb5 {[%emt 0:00:21]} 23. Rxa8 {[%emt 0:00:06]} Rxa8 {[%emt 0:00:08]} 24. f5 {[%emt 0:03:22]} f6 {[%emt 0:04:01]} 25. fxg6 {[%emt 0:03:27]} hxg6 {[%emt 0:00:01]} 26. e5 {[%emt 0:00:18]} Ne6 {[%emt 0:03:09]} 27. Qh4 {[%emt 0:01:40]} Kg7 {[%emt 0:01:55]} 28. exf6+ {[%emt 0:02:29]} exf6 {[%emt 0:00:01]} 29. Nd5 {[%emt 0:00:25]} f5 {[%emt 0:00:59]} 30. Qg3 {[%emt 0:00:24]} Nf8 {[%emt 0:01:38]} 31. Qxd6 {[%emt 0:00:39]} Be6 {[%emt 0:00:49]} 32. Qe5+ {[%emt 0:00:20]} Kf7 {[%emt 0:00:31]} 33. b3 {[%emt 0:04:02]} bxc4 {[%emt 0:00:31]} 34. bxc4 {[%emt 0:00:00]} Ra2 {[%emt 0:00:29]} 35. Rf2 {[%emt 0:00:20]} Qg5 {[%emt 0:00:47]} 36. Bxf5 {[%emt 0:01:29]} Qc1+ {[%emt 0:00:44]} 37. Rf1 {[%emt 0:00:14]} Qxf1+ {[%emt 0:00:15]} 38. Kxf1 {[%emt 0:00:02]} Bxf5 {[%emt 0:00:16]} 39. Qe7+ {[%emt 0:00:35]} 1-0

[Event "23rd European Women Club Cup 2018"]
[Site "Halkidiki"]
[Date "2018.10.12"]
[Round "1"]
[White "Brunello, Marina"]
[Black "Balaian, Alina"]
[Result "1-0"]
[ECO "C02"]
[WhiteElo "2294"]
[BlackElo "2238"]
[Annotator "NA"]
[PlyCount "71"]
[EventDate "2018.10.12"]
[EventType "team-tourn"]
[EventCountry "GRE"]
[SourceTitle "playchess.com"]
[Source "ChessBase"]
[SourceQuality "1"]
[WhiteTeam "Pentole Agnelli"]
[BlackTeam "SSHOR"]
[TimeControl "40/5400+30:1800+30"]

1. e4 {[%emt 0:00:00]} e6 {[%emt 0:00:00]} 2. d4 {[%emt 0:00:06]} d5 {[%emt 0:00:00]} 3. e5 {[%emt 0:00:08]} c5 {[%emt 0:00:00]} 4. c3 {[%emt 0:00:23]} Qb6 {[%emt 0:00:00]} 5. Nf3 {[%emt 0:00:59]} Nc6 {[%emt 0:00:10]} 6. Be2 {[%emt 0:00:13]} cxd4 {[%emt 0:00:24]} 7. cxd4 {[%emt 0:00:36]} Nh6 {[%emt 0:00:05]} 8. Bd3 {[%emt 0:00:32]} Bd7 {[%emt 0:07:18]} 9. Bc2 {[%emt 0:02:25]} Nb4 {[%emt 0:03:08]} 10. Bxh6 {[%emt 0:00:21]} gxh6 {[%emt 0:04:56]} 11. O-O {[%emt 0:02:09]} Be7 {[%emt 0:06:02]} 12. Nc3 {[%emt 0:04:55]} Nxc2 {[%emt 0:05:10]} 13. Qxc2 {[%emt 0:00:06]} O-O {[%emt 0:00:47]} 14. Rfd1 {[%emt 0:05:54]} Kh8 {[%emt 0:01:57]} 15. Qd2 {[%emt 0:03:53]} Rg8 {[%emt 0:00:42]} 16. Ne2 {[%emt 0:06:54]} Rg7 {[%emt 0:11:45]} 17. Ng3 {[%emt 0:03:35]} Rag8 {[%emt 0:01:23]} 18. Qxh6 {[%emt 0:03:56]} Qxb2 {[%emt 0:00:57]} 19. Rab1 {[%emt 0:00:56]} Qxa2 {[%emt 0:03:02]} 20. Rxb7 {[%emt 0:01:15]} Qa4 {[%emt 0:14:59]} 21. Rdb1 {[%emt 0:03:28]} a6 {[%emt 0:06:41]} 22. h4 {[%emt 0:03:04]} Bd8 {[%emt 0:02:53]} 23. Rb8 {[%emt 0:09:18]} Qc2 {[%emt 0:02:45]} 24. R1b7 {[%emt 0:08:17]} Bc8 {[%emt 0:04:38]} 25. Rb1 {[%emt 0:02:12]} Bd7 {[%emt 0:06:46]} 26. Ra1 {[%emt 0:01:37]} Qc7 {[%emt 0:03:20]} 27. Ra8 {[%emt 0:03:52]} Bb5 {[%emt 0:00:55]} 28. Rc1 {[%emt 0:05:03]} Qd7 {[%emt 0:03:28]} 29. Rcc8 {[%emt 0:02:39]} Rg6 {[%emt 0:01:01]} 30. Qc1 {[%emt 0:03:07]} Bc4 {[%emt 0:06:46]} 31. Qf4 {[%emt 0:01:39]} Bd3 {[%emt 0:01:17]} 32. h5 {[%emt 0:06:02]} R6g7 {[%emt 0:00:00]} 33. h6 {[%emt 0:00:32]} Rg6 {[%emt 0:00:01]} 34. Nh4 {[%emt 0:00:23]} Bxh4 {[%emt 0:00:43]} 35. Rxg8+ {[%emt 0:00:16]} Rxg8 {[%emt 0:00:01]} 36. Qxh4 {[%emt 0:00:16]} 1-0

[Event "23rd European Women Club Cup 2018"]
[Site "Halkidiki"]
[Date "2018.10.12"]
[Round "1"]
[White "Richard, Emma"]
[Black "Osmak, Iulija"]
[Result "0-1"]
[ECO "C07"]
[WhiteElo "2127"]
[BlackElo "2405"]
[Annotator "NA"]
[PlyCount "64"]
[EventDate "2018.10.12"]
[EventType "team-tourn"]
[EventCountry "GRE"]
[SourceTitle "playchess.com"]
[Source "ChessBase"]
[SourceQuality "1"]
[WhiteTeam "Mulhouse"]
[BlackTeam "Kyiv"]
[TimeControl "40/5400+30:1800+30"]

1. e4 {[%emt 0:00:00]} e6 {[%emt 0:00:00]} 2. d4 {[%emt 0:00:00]} d5 {[%emt 0:00:00]} 3. Nd2 {[%emt 0:00:00]} c5 {[%emt 0:00:00]} 4. exd5 {[%emt 0:00:00]} Qxd5 {[%emt 0:00:00]} 5. Ngf3 {[%emt 0:00:00]} cxd4 {[%emt 0:00:04]} 6. Bc4 {[%emt 0:00:01]} Qd6 {[%emt 0:00:21]} 7. O-O {[%emt 0:00:27]} Nc6 {[%emt 0:00:08]} 8. Nb3 {[%emt 0:00:23]} a6 {[%emt 0:00:11]} 9. a4 {[%emt 0:00:22]} Nf6 {[%emt 0:01:27]} 10. Nbxd4 {[%emt 0:06:14]} Nxd4 {[%emt 0:05:36]} 11. Nxd4 {[%emt 0:00:06]} Qc7 {[%emt 0:00:22]} 12. Qe2 {[%emt 0:09:21]} Bd6 {[%emt 0:03:02]} 13. h3 {[%emt 0:11:27]} O-O {[%emt 0:04:05]} 14. Rd1 {[%emt 0:03:55]} h6 {[%emt 0:06:05]} 15. Bd3 {[%emt 0:15:03]} Bd7 {[%emt 0:05:29]} 16. Qf3 {[%emt 0:07:03]} Bh2+ {[%emt 0:04:32]} 17. Kh1 {[%emt 0:04:04]} Be5 {[%emt 0:00:10]} 18. Be3 {[%emt 0:05:08]} Nd5 {[%emt 0:04:20]} 19. Be4 {[%emt 0:12:07]} Nxe3 {[%emt 0:03:46]} 20. fxe3 {[%emt 0:02:42]} Rab8 {[%emt 0:03:22]} 21. Ra3 {[%emt 0:02:01]} f5 22. Bd3 b5 {[%emt 0:23:50]} 23. Rc3 {[%emt 0:11:12]} Qb7 {[%emt 0:06:52]} 24. Qxb7 {[%emt 0:02:19]} Rxb7 {[%emt 0:00:03]} 25. axb5 {[%emt 0:00:24]} axb5 {[%emt 0:00:05]} 26. Rc5 {[%emt 0:01:11]} Bd6 {[%emt 0:01:21]} 27. Nxe6 {[%emt 0:05:14]} Bxe6 {[%emt 0:04:15]} 28. Rc6 {[%emt 0:00:04]} Rd7 {[%emt 0:01:32]} 29. Bxb5 {[%emt 0:00:26]} Bg3 {[%emt 0:01:56]} 30. Rf1 {[%emt 0:00:37]} Rd6 {[%emt 0:00:26]} 31. b4 {[%emt 0:02:39]} Rb8 {[%emt 0:02:12]} 32. c3 {[%emt 0:00:55]} Rxb5 {[%emt 0:00:15]} 0-1

[Event "23rd European Women Club Cup 2018"]
[Site "Halkidiki"]
[Date "2018.10.12"]
[Round "1"]
[White "Vidic, Teja"]
[Black "Balajayeva, Khanim"]
[Result "1/2-1/2"]
[ECO "C45"]
[WhiteElo "2116"]
[BlackElo "2326"]
[Annotator "NA"]
[PlyCount "60"]
[EventDate "2018.10.12"]
[EventType "team-tourn"]
[EventCountry "GRE"]
[SourceTitle "playchess.com"]
[Source "ChessBase"]
[SourceQuality "1"]
[WhiteTeam "Maribor"]
[BlackTeam "Odlar Yurdu"]
[TimeControl "40/5400+30:1800+30"]

1. e4 {[%emt 0:00:00]} e5 {[%emt 0:00:00]} 2. Nf3 {[%emt 0:00:00]} Nc6 {[%emt 0:00:00]} 3. d4 {[%emt 0:00:00]} exd4 {[%emt 0:00:00]} 4. Nxd4 {[%emt 0:00:00]} Nf6 {[%emt 0:00:00]} 5. Nxc6 {[%emt 0:00:00]} bxc6 {[%emt 0:00:00]} 6. e5 {[%emt 0:00:00]} Qe7 {[%emt 0:00:00]} 7. Qe2 {[%emt 0:00:00]} Nd5 {[%emt 0:00:04]} 8. c4 {[%emt 0:00:02]} Nb6 {[%emt 0:00:03]} 9. Nc3 {[%emt 0:00:07]} Qe6 {[%emt 0:00:11]} 10. Qe4 {[%emt 0:00:05]} g6 {[%emt 0:00:03]} 11. f4 {[%emt 0:00:34]} Bg7 {[%emt 0:00:24]} 12. c5 {[%emt 0:01:50]} Nd5 {[%emt 0:03:26]} 13. Bc4 {[%emt 0:00:07]} Nxc3 {[%emt 0:03:21]} 14. bxc3 {[%emt 0:00:11]} Qe7 {[%emt 0:00:27]} 15. Be3 {[%emt 0:06:41]} O-O {[%emt 0:03:51]} 16. O-O {[%emt 0:00:33]} Bb7 {[%emt 0:30:37]} 17. Rad1 {[%emt 0:05:48]} Rad8 {[%emt 0:03:03]} 18. Qf3 {[%emt 0:17:44]} Kh8 {[%emt 0:20:11]} 19. Bd4 {[%emt 0:26:02]} d6 {[%emt 0:04:55]} 20. exd6 {[%emt 0:03:48]} Bxd4+ {[%emt 0:02:36]} 21. cxd4 {[%emt 0:02:56]} cxd6 {[%emt 0:00:04]} 22. Qf2 {[%emt 0:06:51]} Bc8 {[%emt 0:03:40]} 23. Rfe1 {[%emt 0:07:29]} Qf6 {[%emt 0:01:07]} 24. Bb3 {[%emt 0:02:38]} Bg4 {[%emt 0:01:19]} 25. Rd2 {[%emt 0:01:50]} Rfe8 {[%emt 0:10:19]} 26. h3 {[%emt 0:03:10]} Rxe1+ {[%emt 0:05:48]} 27. Qxe1 {[%emt 0:00:08]} Bf5 {[%emt 0:01:44]} 28. Qe3 {[%emt 0:02:21]} Kg7 {[%emt 0:01:23]} 29. Re2 {[%emt 0:02:21]} dxc5 {[%emt 0:02:21]} 30. dxc5 {[%emt 0:00:08]} Rd3 {[%emt 0:01:30]} 1/2-1/2

[Event "23rd European Women Club Cup 2018"]
[Site "Halkidiki"]
[Date "2018.10.12"]
[Round "1"]
[White "Mihevc-Mohr, Narcisa"]
[Black "Fataliyeva, Ulviyya"]
[Result "0-1"]
[ECO "C03"]
[WhiteElo "1983"]
[BlackElo "2320"]
[Annotator "NA"]
[PlyCount "62"]
[EventDate "2018.10.12"]
[EventType "team-tourn"]
[EventCountry "GRE"]
[SourceTitle "playchess.com"]
[Source "ChessBase"]
[SourceQuality "1"]
[WhiteTeam "Maribor"]
[BlackTeam "Odlar Yurdu"]
[TimeControl "40/5400+30:1800+30"]

1. e4 {[%emt 0:00:00]} e6 {[%emt 0:00:00]} 2. d4 {[%emt 0:00:02]} d5 {[%emt 0:00:00]} 3. Nd2 {[%emt 0:00:08]} a6 {[%emt 0:00:00]} 4. Ngf3 {[%emt 0:01:09]} c5 {[%emt 0:00:00]} 5. exd5 {[%emt 0:00:27]} exd5 {[%emt 0:00:00]} 6. Be2 {[%emt 0:01:31]} Nf6 {[%emt 0:00:01]} 7. O-O {[%emt 0:01:36]} Bd6 {[%emt 0:00:06]} 8. dxc5 {[%emt 0:06:54]} Bxc5 {[%emt 0:00:05]} 9. Nb3 {[%emt 0:05:39]} Bb6 {[%emt 0:00:06]} 10. Bd3 {[%emt 0:10:11]} O-O {[%emt 0:00:12]} 11. Bf4 {[%emt 0:04:39]} Nc6 {[%emt 0:00:12]} 12. c3 {[%emt 0:00:28]} Ne4 {[%emt 0:03:31]} 13. Nfd4 {[%emt 0:11:28]} Qf6 {[%emt 0:03:03]} 14. Nxc6 {[%emt 0:06:47]} Nxf2 {[%emt 0:06:00]} 15. Bxh7+ {[%emt 0:08:46]} Kh8 {[%emt 0:06:58]} 16. Qc2 {[%emt 0:08:11]} bxc6 {[%emt 0:15:18]} 17. Nd4 {[%emt 0:04:46]} Ng4 {[%emt 0:04:14]} 18. h3 {[%emt 0:07:26]} c5 {[%emt 0:13:03]} 19. Ne2 {[%emt 0:12:13]} c4+ {[%emt 0:14:52]} 20. Kh1 {[%emt 0:01:49]} Nf2+ {[%emt 0:04:38]} 21. Kh2 {[%emt 0:01:04]} g6 22. Nd4 {[%emt 0:00:10]} Qxf4+ {[%emt 0:01:43]} 23. g3 {[%emt 0:00:08]} Qh6 {[%emt 0:01:01]} 24. Qxf2 {[%emt 0:02:39]} Qxh3+ {[%emt 0:00:46]} 25. Kg1 {[%emt 0:00:03]} Kxh7 {[%emt 0:01:06]} 26. Rae1 {[%emt 0:01:50]} Bf5 {[%emt 0:01:09]} 27. Re2 {[%emt 0:02:06]} Bd3 {[%emt 0:02:19]} 28. Qh2 {[%emt 0:00:14]} Qxh2+ {[%emt 0:00:10]} 29. Rxh2+ {[%emt 0:00:03]} Kg7 {[%emt 0:00:11]} 30. Rf4 {[%emt 0:00:13]} Rae8 {[%emt 0:00:19]} 31. Rhf2 {[%emt 0:00:37]} Re1+ {[%emt 0:00:09] Nc2} 0-1

[Event "23rd European Women Club Cup 2018"]
[Site "Halkidiki"]
[Date "2018.10.13"]
[Round "2"]
[White "Javakhishvili, Lela"]
[Black "Petraki, Evaggelia"]
[Result "1-0"]
[ECO "A04"]
[WhiteElo "2475"]
[BlackElo "1769"]
[Annotator "ChessBase"]
[PlyCount "77"]
[EventDate "2018.10.12"]
[EventType "team-tourn"]
[EventCountry "GRE"]
[SourceTitle "playchess.com"]
[Source "ChessBase"]
[SourceQuality "1"]
[WhiteTeam "Nona"]
[BlackTeam "Thessaloniki"]
[TimeControl "40/5400+30:1800+30"]

1. Nf3 {[%emt 0:00:00]} c5 {[%emt 0:00:00]} 2. g3 {[%emt 0:00:34]} g6 {[%emt 0:01:12]} 3. Bg2 {[%emt 0:00:07]} Bg7 {[%emt 0:00:06]} 4. O-O {[%emt 0:00:07]} Nc6 {[%emt 0:00:34]} 5. c4 {[%emt 0:00:19]} Nf6 {[%emt 0:00:41]} 6. d4 {[%emt 0:02:16]} cxd4 {[%emt 0:00:38]} 7. Nxd4 {[%emt 0:00:08]} O-O {[%emt 0:00:35]} 8. Nc3 {[%emt 0:00:31]} Qb6 {[%emt 0:09:34]} 9. Nb3 {[%emt 0:04:37]} d6 {[%emt 0:07:02]} 10. Be3 {[%emt 0:08:48]} Qd8 {[%emt 0:00:18]} 11. Rc1 {[%emt 0:03:26]} Be6 {[%emt 0:05:49]} 12. c5 {[%emt 0:08:01]} d5 {[%emt 0:02:04]} 13. Rc2 {[%emt 0:09:17]} Ne5 {[%emt 0:07:01]} 14. Bd4 {[%emt 0:05:06]} Qc7 {[%emt 0:03:59]} 15. Nb5 {[%emt 0:08:51]} Qb8 {[%emt 0:00:14]} 16. Bc3 {[%emt 0:01:01]} Bd7 {[%emt 0:07:04]} 17. N5d4 {[%emt 0:00:44]} e6 {[%emt 0:02:40]} 18. Nd2 {[%emt 0:04:00]} Qc7 {[%emt 0:04:49]} 19. b3 {[%emt 0:07:54]} Rfc8 {[%emt 0:02:43]} 20. Bb2 {[%emt 0:00:53]} Bc6 {[%emt 0:10:13]} 21. Qa1 {[%emt 0:01:06]} Ned7 {[%emt 0:01:34]} 22. a4 {[%emt 0:06:24]} Qd8 {[%emt 0:04:25]} 23. b4 {[%emt 0:05:04]} a6 {[%emt 0:00:08]} 24. e4 {[%emt 0:01:25]} e5 {[%emt 0:05:22]} 25. Nxc6 {[%emt 0:00:56]} bxc6 {[%emt 0:00:05]} 26. exd5 {[%emt 0:00:29]} Nxd5 {[%emt 0:00:15]} 27. Qa3 {[%emt 0:06:53]} Nf8 {[%emt 0:05:51]} 28. Nc4 {[%emt 0:00:09]} Rab8 {[%emt 0:01:31]} 29. Rd1 {[%emt 0:00:59]} Qc7 {[%emt 0:05:38]} 30. Bxd5 {[%emt 0:00:24]} cxd5 {[%emt 0:00:03]} 31. Rxd5 {[%emt 0:00:09]} Rd8 {[%emt 0:00:27]} 32. Nd6 {[%emt 0:03:09]} Qc6 {[%emt 0:01:14]} 33. Rdd2 {[%emt 0:01:31]} Bh6 {[%emt 0:01:50]} 34. Rd3 {[%emt 0:02:50]} Rxd6 {[%emt 0:05:46]} 35. Rxd6 {[%emt 0:00:09]} Qe4 {[%emt 0:00:04]} 36. Qc3 {[%emt 0:00:44]} Ne6 {[%emt 0:00:37]} 37. Qxe5 {[%emt 0:00:54]} Qxe5 {[%emt 0:00:06]} 38. Bxe5 {[%emt 0:00:05]} Rxb4 {[%emt 0:00:10]} 39. Rxe6 {[%emt 0:01:20]} 1-0